bitfinex-derivatives/quotes_BNBF0:USTF0_20250425
["timestamp","ask_amount","ask_price","bid_price","bid_amount"]
[1745624293746,1.26741298,600.98,598.83,0.30607102]
[1745624294042,1.26741298,600.98,598.84,0.30607102]
[1745624294250,1.26741298,600.87,598.89,1.05973131]
[1745624294547,1.26741298,600.87,598.9,0.30607102]
[1745624294842,1.26741298,600.87,598.91,0.30607102]
[1745624295041,1.26741298,600.87,598.92,0.30607102]
[1745624295241,0.29013902,600.86,598.93,0.30607102]
[1745624295546,0.29013902,600.86,598.94,0.30607102]
[1745624295746,0.29013902,600.86,598.9,0.30607102]
[1745624296547,1.26741298,600.71,599.0,1.05973131]
[1745624296749,1.26741298,600.71,599.01,0.30607102]
[1745624298246,1.26741298,600.71,599.0,1.05973131]
[1745624298440,1.26741298,600.71,599.01,0.30616147]
[1745624298943,2.15636237,600.82,599.01,0.30616147]
[1745624299146,0.29013902,600.86,599.02,0.30616147]
[1745624299348,0.29013902,600.86,599.03,0.30616147]
[1745624299549,0.29013902,600.86,598.84,0.30616147]
[1745624299748,1.26741298,601.02,598.52,1.05973131]
[1745624299945,1.26741298,601.02,598.53,0.30616197]
[1745624300147,1.26741298,601.02,598.83,0.29016201]
[1745624300348,1.26741298,601.02,598.84,0.30616197]
[1745624300650,1.26741298,601.02,598.53,0.30616197]
[1745624300853,1.26741298,601.02,598.54,0.30616197]
[1745624301049,0.29019951,601.01,598.55,0.30616197]
[1745624301351,0.29019951,601.01,598.56,0.30616197]
[1745624301548,0.29019951,601.01,598.57,0.30616197]
[1745624301950,0.29019951,601.01,598.58,0.30616197]
[1745624302152,0.29019951,601.01,598.59,0.30616197]
[1745624302358,0.29019951,601.01,598.6,0.30616197]
[1745624302547,0.29019951,601.01,598.61,0.30616197]
[1745624302748,1.26741298,601.04,598.62,0.30616197]
[1745624302951,1.26741298,601.04,598.46,1.05973131]
[1745624303249,0.29019467,601.0,598.57,0.29019467]
[1745624303449,0.29019467,601.0,598.58,0.30615986]
[1745624303648,0.29019467,601.0,598.59,0.30615986]
[1745624303848,0.29019467,601.0,598.6,0.30615986]
[1745624304149,1.26741298,600.99,598.61,0.30615986]
[1745624304353,1.26741298,600.99,598.62,0.30615986]
[1745624304555,1.26741298,600.99,598.58,0.29020435]
[1745624304854,1.26741298,600.99,598.59,0.30616785]
[1745624305051,1.26741298,600.99,598.6,0.30616785]
[1745624305254,1.26741298,600.99,598.61,0.30616785]
[1745624305554,1.26741298,600.99,598.62,0.30616785]
[1745624305755,1.26741298,600.99,598.63,0.30616785]
[1745624305955,1.26741298,600.99,598.64,0.30616785]
[1745624306155,1.26741298,600.99,598.65,0.30616785]
[1745624306454,1.26741298,600.99,598.66,0.30616785]
[1745624306654,1.26741298,600.99,598.67,0.30616785]
[1745624306852,1.26741298,600.99,598.68,0.30616785]
[1745624307053,0.29020798,600.98,598.69,0.30616785]
[1745624307253,1.26741298,600.83,598.7,0.30616785]
[1745624307552,1.26741298,600.83,598.71,0.30616785]
[1745624307753,1.26741298,600.83,598.72,0.30616785]
[1745624307949,1.26741298,600.83,598.73,0.30616785]
[1745624308149,1.26741298,600.83,598.74,0.30616785]
[1745624308353,1.26741298,600.83,598.75,0.30616785]
[1745624308549,1.26741298,600.83,598.76,0.30616785]
[1745624308750,1.26741298,600.83,598.77,0.30616785]
[1745624308950,1.26741298,600.83,598.78,0.30616785]
[1745624309158,1.26741298,600.83,598.79,0.30616785]
[1745624309455,1.26741298,600.83,598.62,0.29020798]
[1745624309655,1.26741298,600.83,598.63,0.30616918]
[1745624309851,1.26741298,600.83,598.64,0.30616918]
[1745624310050,1.26741298,600.83,598.65,0.30616918]
[1745624310355,1.26741298,600.78,598.66,0.30616918]
[1745624310549,1.26741298,600.78,598.67,0.30616918]
[1745624310750,1.26741298,600.78,598.68,0.30616918]
[1745624311053,1.26741298,600.78,598.69,0.30616918]
[1745624311252,1.26741298,600.78,598.7,0.30616918]
[1745624311456,1.26741298,600.78,598.71,0.30616918]
[1745624311756,1.26741298,600.78,598.72,0.30616918]
[1745624311957,1.26741298,600.78,598.73,0.30616918]
[1745624312158,0.2902334,600.77,598.74,0.30616918]
[1745624312357,0.2902334,600.77,598.75,0.30616918]
[1745624312554,0.2902334,600.77,598.76,0.30616918]
[1745624312754,0.2902334,600.77,598.77,0.30616918]
[1745624312954,0.2902334,600.77,598.78,0.30616918]
[1745624313155,0.2902334,600.77,598.79,0.30616918]
[1745624313354,0.2902334,600.77,598.8,0.30616918]
[1745624313556,0.2902334,600.77,598.81,0.30616918]
[1745624313754,0.2902334,600.77,598.82,0.30616918]
[1745624313955,0.2902334,600.77,598.83,0.30616918]
[1745624314257,0.2902334,600.77,598.84,0.30618657]
[1745624314459,0.2902334,600.77,598.85,0.30618657]
[1745624314657,0.2902334,600.77,598.86,0.30618657]
[1745624314857,1.26741298,600.87,598.87,0.30618657]
[1745624315052,1.26741298,600.88,598.88,0.30618657]
[1745624315253,0.29021766,600.76,598.89,0.30618657]
[1745624315554,1.26741298,600.88,598.9,0.30618657]
[1745624315757,1.26741298,600.88,598.75,0.30618657]
[1745624315954,1.26741298,600.88,598.74,0.29021766]
[1745624315955,1.26741298,600.88,598.76,0.30618657]
[1745624316155,1.26741298,600.88,598.77,0.30618657]
[1745624316460,0.29020677,600.87,598.78,0.30618657]
[1745624316660,0.29020677,600.87,598.79,0.30618657]
[1745624316855,0.29020677,600.87,598.8,0.30618657]
[1745624317155,0.29020677,600.87,598.81,0.30618657]
[1745624317360,0.29020677,600.87,598.74,0.29021766]
[1745624317557,0.29020677,600.87,598.75,0.30618241]
[1745624317756,1.26741298,600.85,598.76,0.30618241]
[1745624317960,1.26741298,600.85,598.77,0.30618241]
[1745624318161,1.26741298,600.85,598.78,0.30618241]
[1745624318359,1.26741298,600.85,598.79,0.30618241]
[1745624318662,1.26741298,600.85,598.74,0.29020677]
[1745624318663,1.26741298,600.85,598.8,0.30618241]
[1745624318858,1.26741298,600.85,598.81,0.30618241]
[1745624319062,1.26741298,600.85,598.82,0.30618241]
[1745624319263,1.26741298,600.85,598.83,0.30618241]
[1745624319562,1.26741298,600.85,598.84,0.30618241]
[1745624319762,1.26741298,600.85,598.85,0.30618241]
[1745624319964,1.26741298,600.85,598.86,0.30618241]
[1745624320163,1.26741298,600.85,598.87,0.30618241]
[1745624320358,1.26741298,600.85,598.88,0.30618241]
[1745624320557,1.26741298,600.85,598.89,0.30615949]
[1745624320762,1.26741298,600.85,598.9,0.30615949]
[1745624320968,1.26741298,600.85,598.91,0.30615949]
[1745624321165,1.26741298,600.85,598.92,0.30615949]
[1745624321366,1.26741298,600.85,598.93,0.30615949]
[1745624321663,1.26741298,600.85,598.94,0.30615949]
[1745624321863,1.26741298,600.85,598.07,0.72206415]
[1745624321864,1.26741298,600.68,598.95,0.30615949]
[1745624322065,1.26741298,600.68,598.82,0.29022492]
[1745624322264,1.26741298,600.68,598.83,0.30615949]
[1745624322464,1.26741298,600.68,598.84,0.30615949]
[1745624322769,1.26741298,600.68,598.85,0.30615949]
[1745624322968,1.26741298,600.68,598.82,0.29022492]
[1745624322969,1.26741298,600.68,598.86,0.30615949]
[1745624323268,1.26741298,600.68,598.83,0.30615949]
[1745624323464,1.26741298,600.68,598.84,0.30615949]
[1745624323666,1.26741298,600.68,598.85,0.30615949]
[1745624323865,1.26741298,600.87,598.83,0.30615949]
[1745624324169,0.29020677,600.67,598.86,0.791]
[1745624324469,1.26741298,600.87,598.87,0.30615949]
[1745624325063,0.29017894,600.86,598.87,0.30615949]
[1745624325765,1.26741298,600.85,598.87,0.30615949]
[1745624326869,1.26741298,600.85,598.88,0.30618209]
[1745624327070,0.29018136,600.84,598.87,0.30618209]
[1745624327264,0.29018136,600.84,598.88,0.30618209]
[1745624327465,0.29018136,600.84,598.87,0.30618209]
[1745624327969,1.26741298,600.82,598.87,0.30618209]
[1745624329070,1.26741298,600.82,598.88,0.30618209]
[1745624329271,1.26741298,600.82,598.89,0.30618209]
[1745624329470,1.26741298,600.82,598.87,0.30618209]
[1745624329671,1.26741298,600.82,598.88,0.30618209]
[1745624329871,1.26741298,600.75,598.87,0.30618209]
[1745624330066,1.26741298,600.75,598.88,0.30618209]
[1745624330266,1.26741298,600.75,598.87,0.30618209]
[1745624330464,1.26741298,600.75,598.88,0.30618209]
[1745624330666,1.26741298,600.75,598.87,0.30618209]
[1745624330873,1.26741298,600.75,598.88,0.30618209]
[1745624331074,1.26741298,600.75,598.87,0.30618209]
[1745624331372,1.26741298,600.75,598.88,0.30618209]
[1745624331576,1.26741298,600.75,598.86,1.08118499]
[1745624331876,1.26741298,600.75,598.87,0.30618106]
[1745624332077,1.26741298,600.67,598.88,0.30618106]
[1745624332274,1.26741298,600.67,598.89,0.30618106]
[1745624332472,1.26741298,600.67,598.9,0.30618106]
[1745624332675,1.26741298,600.67,598.91,0.30618106]
[1745624332975,1.26741298,600.67,598.92,0.30618106]
[1745624333176,0.29020314,600.66,598.93,0.30618106]
[1745624333369,0.29020314,600.66,598.94,0.30618106]
[1745624333569,0.29020314,600.66,598.95,0.30618106]
[1745624333775,0.29020314,600.66,598.96,0.30618106]
[1745624333974,0.29020314,600.66,598.97,0.30618106]
[1745624334176,0.29020314,600.66,598.98,0.30618106]
[1745624334376,1.26741298,600.58,598.99,0.30618106]
[1745624334569,1.26741298,600.58,599.0,0.30618106]
[1745624334770,1.26741298,600.58,598.91,0.29020314]
[1745624334971,1.26741298,600.58,598.92,0.30616227]
[1745624335171,1.26741298,600.58,598.93,0.30616227]
[1745624335375,1.26741298,600.58,598.94,0.30616227]
[1745624335576,1.26741298,600.58,598.95,0.30616227]
[1745624335779,1.26741298,600.58,598.96,0.30616227]
[1745624335973,1.26741298,600.58,598.97,0.30616227]
[1745624336171,0.29020798,600.57,598.98,0.30616227]
[1745624336376,0.29020798,600.57,598.99,0.30616227]
[1745624336676,0.29020798,600.57,599.0,0.30616227]
[1745624336882,0.29020798,600.57,598.94,0.30616227]
[1745624337083,0.29020798,600.57,598.95,0.30616227]
[1745624337378,0.29020798,600.57,598.96,0.30616227]
[1745624337582,0.29020798,600.57,598.97,0.30616227]
[1745624337782,0.29020798,600.57,598.98,0.30616227]
[1745624337983,0.29020798,600.57,598.99,0.30616227]
[1745624338183,0.29020798,600.57,598.94,0.30616227]
[1745624338379,0.29020798,600.57,598.95,0.30616227]
[1745624338585,0.29020798,600.57,598.96,0.30616227]
[1745624338783,1.26741298,600.61,598.97,0.30616227]
[1745624338983,1.26741298,600.61,598.98,0.30616227]
[1745624339184,1.26741298,600.61,598.87,0.30616227]
[1745624339479,1.26741298,600.61,598.88,0.30616227]
[1745624339683,1.26741298,600.61,598.89,0.30616227]
[1745624339884,1.26741298,600.61,598.9,0.30616227]
[1745624340186,0.2902104,600.6,598.91,0.30616227]
[1745624340484,0.2902104,600.6,598.92,0.30616227]
[1745624340681,0.2902104,600.6,598.93,0.30616227]
[1745624340878,0.2902104,600.6,598.94,0.30616227]
[1745624341084,0.2902104,600.6,598.95,0.30616227]
[1745624341385,0.2902104,600.6,598.96,0.30616227]
[1745624341583,0.2902104,600.6,598.97,0.30616227]
[1745624341884,0.2902104,600.6,598.98,0.30616227]
[1745624342082,0.2902104,600.6,598.99,0.30616227]
[1745624342281,0.2902104,600.6,598.91,0.30616227]
[1745624342484,0.2902104,600.6,598.92,0.30616227]
[1745624342685,0.2902104,600.6,598.93,0.30616227]
[1745624342885,1.26741298,600.52,598.94,0.30616227]
[1745624343084,1.26741298,600.52,598.9,0.2902104]
[1745624343085,1.26741298,600.52,598.95,0.30616227]
[1745624343282,1.26741298,600.52,598.96,0.30616227]
[1745624343483,1.26741298,600.52,598.97,0.30616227]
[1745624343679,1.26741298,600.52,598.98,0.30616227]
[1745624343880,1.26741298,600.52,598.99,0.30616227]
[1745624344079,1.26741298,600.52,599.0,0.30616227]
[1745624344286,1.26741298,600.52,599.01,0.30616227]
[1745624344584,1.26741298,600.52,599.02,0.30616227]
[1745624344885,1.26741298,600.52,599.03,0.30616227]
[1745624345086,1.26741298,600.49,598.87,0.30616227]
[1745624345285,1.26741298,600.49,598.93,0.29021645]
[1745624345485,1.26741298,600.49,598.94,0.30616227]
[1745624345686,1.26741298,600.49,598.95,0.30616227]
[1745624345883,1.26741298,600.49,598.96,0.30616227]
[1745624346081,1.26741298,600.49,598.97,0.30616227]
[1745624346287,1.26741298,600.49,598.98,0.30616227]
[1745624346486,1.26741298,600.49,598.99,0.30616227]
[1745624346786,1.26741298,600.49,599.0,0.30616227]
[1745624346985,1.26741298,600.49,598.93,0.29021645]
[1745624346986,1.26741298,600.49,599.01,0.30616227]
[1745624347186,1.26741298,600.49,599.02,0.30616227]
[1745624347381,1.26741298,600.49,599.03,0.30616227]
[1745624347585,1.26741298,600.49,599.04,0.30616227]
[1745624347782,1.26741298,600.45,599.05,0.30616227]
[1745624347988,1.26741298,600.45,599.06,0.30616227]
[1745624348287,1.26741298,600.45,599.07,0.30616227]
[1745624348483,1.26741298,600.45,599.08,0.30616227]
[1745624348683,1.26741298,600.45,598.96,0.30616227]
[1745624348881,1.26741298,600.45,598.95,0.29021645]
[1745624349083,1.26741298,600.45,598.96,0.30618464]
[1745624349285,1.26741298,600.45,598.97,0.30618464]
[1745624349486,1.26741298,600.45,598.98,0.30618464]
[1745624349787,1.26741298,600.44,598.99,0.30618464]
[1745624349985,1.26741298,600.44,599.0,0.30618464]
[1745624350189,1.26741298,600.44,599.01,0.30618464]
[1745624350390,1.26741298,600.44,598.95,0.29021645]
[1745624350588,1.26741298,600.44,598.96,0.30617755]
[1745624350790,1.26741298,600.44,598.97,0.30617755]
[1745624350986,1.26741298,600.44,598.98,0.30617755]
[1745624351288,1.26741298,600.44,598.99,0.30617755]
[1745624351490,1.26741298,600.44,599.0,0.30617755]
[1745624351690,1.26741298,600.44,598.86,0.791]
[1745624351691,1.26741298,600.42,599.01,0.30617755]
[1745624351894,1.26741298,600.42,599.02,0.30617755]
[1745624352087,1.26741298,600.42,598.96,0.29023098]
[1745624352287,1.26741298,600.42,598.97,0.30618123]
[1745624352492,1.26741298,600.42,598.98,0.30618123]
[1745624352694,1.26741298,600.42,598.99,0.30618123]
[1745624352894,1.26741298,600.42,599.0,0.30618123]
[1745624353094,1.26741298,600.42,599.01,0.30618123]
[1745624353287,1.26741298,600.42,599.02,0.30618123]
[1745624353489,1.26741298,600.42,599.03,0.30618123]
[1745624353690,1.26741298,600.43,599.04,0.30618123]
[1745624353888,1.26741298,600.43,599.05,0.30618123]
[1745624354191,1.26741298,600.43,599.06,0.30618123]
[1745624354494,1.26741298,600.43,599.07,0.30618123]
[1745624354793,1.26741298,600.43,599.08,0.30618123]
[1745624354994,1.26741298,600.43,599.09,0.30618123]
[1745624355295,1.26741298,600.43,599.1,0.30618123]
[1745624355495,1.26741298,600.43,599.11,0.30618123]
[1745624355695,1.26741298,600.43,598.98,0.30618123]
[1745624355897,1.26741298,600.42,598.99,0.30618123]
[1745624356196,1.26741298,600.42,599.0,0.30618123]
[1745624356396,1.26741298,600.42,599.01,0.30618123]
[1745624356593,1.26741298,600.42,599.02,0.30618123]
[1745624356794,1.26741298,600.42,598.98,0.30618123]
[1745624357096,1.26741298,600.42,598.99,0.30618123]
[1745624357296,1.26741298,600.42,599.0,0.30618123]
[1745624357496,1.26741298,600.42,598.87,0.30618123]
[1745624357696,1.26741298,600.42,598.88,0.30618123]
[1745624357896,1.26741298,600.42,598.87,0.30618123]
[1745624358094,1.26741298,600.42,598.88,0.59642673]
[1745624358291,1.26741298,600.42,598.89,0.30618123]
[1745624358496,1.26741298,600.42,598.9,0.30620512]
[1745624358696,0.2902455,600.44,598.89,0.30620512]
[1745624358894,0.2902455,600.44,598.9,0.30620512]
[1745624359095,0.2902455,600.44,598.89,0.30620512]
[1745624359894,0.2902455,600.44,598.88,0.2902455]
[1745624360100,0.2902455,600.44,598.89,0.30620073]
[1745624362797,1.26741298,600.83,598.89,0.30620073]
[1745624362997,1.26741298,600.83,598.87,0.30620073]
[1745624363202,0.29019346,600.44,598.88,0.59639202]
[1745624363402,1.26741298,600.83,598.89,0.30619856]
[1745624363801,1.26741298,600.86,598.89,0.30619856]
[1745624364603,0.29018983,600.85,598.89,0.30619856]
[1745624364804,0.29018983,600.85,598.88,0.29019346]
[1745624365004,0.29018983,600.85,598.89,0.30620234]
[1745624365805,1.26741298,600.86,598.89,0.30620234]
[1745624366001,1.26741298,600.86,598.87,0.30620234]
[1745624366204,1.26741298,600.86,598.48,1.05973131]
[1745624366205,0.29020919,600.84,598.88,0.30620234]
[1745624366405,0.29020919,600.84,598.85,0.29020919]
[1745624366607,0.29020919,600.84,598.86,0.3062133]
[1745624368410,0.29020919,600.84,598.85,0.29020919]
[1745624368710,1.26741298,601.0,598.87,0.765]
[1745624368909,1.26741298,601.0,598.88,0.30620556]
[1745624369110,0.29024187,600.83,598.88,0.30620556]
[1745624369310,1.26741298,601.0,598.88,0.30620556]
[1745624370006,0.29018136,600.99,598.88,0.30620556]
[1745624370407,1.26741298,600.88,598.88,0.30620556]
[1745624372013,0.29019588,600.87,598.88,0.30620556]
[1745624373115,0.29019588,600.87,598.87,0.765]
[1745624373317,0.29019588,600.87,598.88,0.30620229]
[1745624376516,0.29019588,600.87,598.89,0.30620801]
[1745624376715,0.29019588,600.87,598.9,0.30620801]
[1745624376913,0.29019588,600.87,598.88,0.30620801]
[1745624377112,0.29019588,600.87,598.89,0.30620801]
[1745624377315,0.29019588,600.87,598.9,0.30620801]
[1745624377514,0.29019588,600.87,598.91,0.30620801]
[1745624377815,1.26741298,600.58,598.92,0.30620801]
[1745624378110,1.26741298,600.58,598.87,0.765]
[1745624378315,1.26741298,600.58,598.88,0.30620051]
[1745624378512,1.26741298,600.58,598.89,0.30620051]
[1745624378717,1.26741298,600.58,598.9,0.30620051]
[1745624379015,1.26741298,600.58,598.87,1.05519588]
[1745624379016,1.26741298,600.58,598.91,0.30620051]
[1745624379216,1.26741298,600.58,598.92,0.30620051]
[1745624379411,1.26741298,600.58,598.93,0.30620051]
[1745624379614,1.26741298,600.58,598.94,0.30620051]
[1745624379810,1.26741298,600.58,598.95,0.30620051]
[1745624380017,1.26741298,600.54,598.88,0.30620051]
[1745624380317,1.26741298,600.54,598.89,0.30620051]
[1745624380511,1.26741298,600.54,598.9,0.30620051]
[1745624380713,1.26741298,600.54,598.91,0.30620051]
[1745624380912,1.26741298,600.54,598.92,0.30620051]
[1745624381117,1.26741298,600.54,598.88,0.30620051]
[1745624381416,1.26741298,600.54,598.89,0.30620051]
[1745624381617,1.26741298,600.54,598.9,0.30620051]
[1745624381819,1.26741298,600.54,598.91,0.30620051]
[1745624382011,1.26741298,600.54,598.92,0.30620051]
[1745624382216,0.29023945,600.53,598.88,0.59643996]
[1745624382417,0.29023945,600.53,598.89,0.30620051]
[1745624382719,0.29023945,600.53,598.9,0.30620051]
[1745624383018,0.29023945,600.53,598.88,0.29023945]
[1745624383215,0.29023945,600.53,598.89,0.30620129]
[1745624383414,0.29023945,600.53,598.9,0.30620129]
[1745624383617,0.29023945,600.53,598.91,0.30620129]
[1745624383915,1.26741298,600.56,598.92,0.30620129]
[1745624384119,0.29023582,600.52,598.93,0.30620129]
[1745624384319,0.29023582,600.52,598.89,0.30620129]
[1745624384616,0.29023582,600.52,598.9,0.30620129]
[1745624384918,0.29023582,600.52,598.91,0.30620129]
[1745624385213,0.29023582,600.52,598.92,0.30620129]
[1745624385417,0.29023582,600.52,598.89,0.30620129]
[1745624385617,0.29023582,600.52,598.9,0.30620129]
[1745624385826,0.29023582,600.52,598.91,0.30620129]
[1745624386025,0.29023582,600.52,598.89,0.30620129]
[1745624386222,0.29023582,600.52,598.9,0.30620129]
[1745624386526,0.29023582,600.52,598.91,0.30621519]
[1745624386527,1.26741298,600.5,598.91,0.30621519]
[1745624386726,1.26741298,600.5,598.92,0.30621519]
[1745624387026,0.29024792,600.49,598.93,0.30621519]
[1745624387227,0.29024792,600.49,598.94,0.30621519]
[1745624387427,0.29024792,600.49,598.88,0.30621519]
[1745624387627,0.29024792,600.49,598.89,0.30621519]
[1745624387828,0.29024792,600.49,598.9,0.30621519]
[1745624388028,0.29024792,600.49,598.91,0.30621136]
[1745624388227,0.29024792,600.49,598.92,0.30621136]
[1745624388426,0.29024792,600.49,598.88,0.30621136]
[1745624388623,0.29024792,600.49,598.89,0.30621136]
[1745624388826,0.29024792,600.49,598.9,0.30621136]
[1745624389025,0.29024792,600.49,598.91,0.30621136]
[1745624389225,0.29024792,600.49,598.87,1.05524792]
[1745624389226,0.29024792,600.49,598.92,0.30621136]
[1745624389425,0.29024792,600.49,598.93,0.30621136]
[1745624389728,0.29024792,600.49,598.94,0.30621073]
[1745624389924,1.26741298,600.5,598.88,0.30621073]
[1745624390129,0.29024913,600.48,598.89,0.30621073]
[1745624390324,0.29024913,600.48,598.9,0.30621073]
[1745624390526,0.29024913,600.48,598.91,0.30621073]
[1745624390724,0.29024913,600.48,598.92,0.30621073]
[1745624390927,0.29024913,600.48,598.88,0.30621073]
[1745624391131,0.29024913,600.48,598.89,0.30621073]
[1745624391432,0.29024913,600.48,598.9,0.30621073]
[1745624391729,0.29024913,600.48,598.87,1.05524913]
[1745624391730,0.29024913,600.48,598.91,0.30621073]
[1745624391930,0.29024913,600.48,598.88,0.30621073]
[1745624392230,0.29024913,600.48,598.87,1.05524913]
[1745624392231,0.29024913,600.48,598.89,0.30621073]
[1745624392431,0.29024913,600.48,598.9,0.30621073]
[1745624392632,0.29024913,600.48,598.91,0.30621073]
[1745624392931,0.29024913,600.48,598.92,0.30621073]
[1745624393130,0.29024913,600.48,598.88,0.30621073]
[1745624393333,0.29024913,600.48,598.89,0.30621073]
[1745624393534,0.29024913,600.48,598.88,0.30621073]
[1745624393734,0.29024913,600.48,598.89,0.30621073]
[1745624393935,0.29024913,600.48,598.9,0.30621073]
[1745624394134,0.29024913,600.48,598.91,0.30621073]
[1745624394332,0.29024913,600.48,598.88,0.30621073]
[1745624395735,1.26741298,600.62,598.88,0.30621073]
[1745624396035,0.29023461,600.47,598.88,0.30621073]
[1745624396237,1.26741298,600.62,598.88,0.30621073]
[1745624397237,0.29023461,600.61,598.88,0.30621073]
[1745624398740,1.26741298,600.74,598.88,0.30621073]
[1745624399140,0.29022008,600.73,598.88,0.30621073]
[1745624399340,0.29022008,600.73,598.87,1.05522008]
[1745624399341,0.29022008,600.73,598.89,0.3062003]
[1745624399544,0.29022008,600.73,598.88,0.3062003]
[1745624399742,0.29022008,600.73,598.89,0.3062003]
[1745624399942,0.29022008,600.73,598.88,0.3062003]
[1745624400143,0.29022008,600.73,598.89,0.3062003]
[1745624400344,0.29022008,600.73,598.88,0.3062003]
[1745624400542,0.29022008,600.73,598.9,0.3062003]
[1745624400744,0.29022008,600.73,598.87,1.05522008]
[1745624400745,0.29022008,600.73,598.91,0.3062003]
[1745624400942,0.29022008,600.73,598.88,0.3062003]
[1745624401143,0.29022008,600.73,598.92,0.3062003]
[1745624401445,0.29022008,600.73,598.93,0.3062003]
[1745624401646,0.29022008,600.73,598.88,0.3062003]
[1745624401847,1.26741298,600.75,598.89,0.3062003]
[1745624402041,1.26741298,600.75,598.88,0.3062003]
[1745624403042,0.29021887,600.74,598.88,0.3062003]
[1745624403842,0.29021887,600.74,598.87,1.05521887]
[1745624404044,0.29021887,600.74,598.88,0.30620653]
[1745624404547,0.29021887,600.74,598.89,0.30620653]
[1745624404850,0.29021887,600.74,598.87,1.05521887]
[1745624404851,1.26741298,600.67,598.9,0.30620653]
[1745624405043,1.26741298,600.67,598.91,0.30620653]
[1745624405242,1.26741298,600.67,598.92,0.30620653]
[1745624405444,1.26741298,600.67,598.93,0.30620653]
[1745624405650,1.26741298,600.67,598.94,0.30620653]
[1745624405845,1.26741298,600.67,598.95,0.30620653]
[1745624406045,0.29022855,600.66,598.96,0.30620653]
[1745624406246,0.29022855,600.66,598.88,0.30620653]
[1745624406446,0.29022855,600.66,598.89,0.30620653]
[1745624406647,0.29022855,600.66,598.9,0.30620653]
[1745624406848,0.29022855,600.66,598.87,1.05522855]
[1745624406849,1.26741298,600.55,598.91,0.30620653]
[1745624407151,1.26741298,600.55,598.92,0.30620653]
[1745624407351,1.26741298,600.55,598.88,0.30620653]
[1745624407648,1.26741298,600.55,598.87,1.05522855]
[1745624407649,1.26741298,600.55,598.89,0.30620653]
[1745624407851,1.26741298,600.55,598.88,0.30620653]
[1745624408548,1.26741298,600.55,598.87,1.05522855]
[1745624408753,1.26741298,600.55,598.88,0.30620366]
[1745624408953,1.26741298,600.61,598.88,0.30620366]
[1745624410954,1.26741298,600.56,598.88,0.30620366]
[1745624411656,1.26741298,600.56,598.87,1.05522855]
[1745624411957,1.26741298,600.56,598.88,0.30621161]
[1745624413558,1.26741298,600.55,598.88,0.30621161]
[1745624414158,0.29024308,600.54,598.88,0.30621161]
[1745624414855,0.29024308,600.54,598.89,0.30621161]
[1745624415059,0.29024308,600.54,598.87,1.05524308]
[1745624415060,0.29024308,600.54,598.9,0.30621161]
[1745624415360,0.29024308,600.54,598.91,0.30621161]
[1745624415555,0.29024308,600.54,598.92,0.30621161]
[1745624415754,0.29024308,600.54,598.93,0.30621161]
[1745624415955,0.29024308,600.54,598.94,0.30621161]
[1745624416155,0.29024308,600.54,598.88,0.30621161]
[1745624416358,0.29024308,600.54,598.89,0.30621161]
[1745624416555,0.29024308,600.54,598.9,0.30621161]
[1745624416759,0.29024308,600.54,598.91,0.30621161]
[1745624417059,1.26741298,600.56,598.92,0.30621161]
[1745624417260,1.26741298,600.56,598.93,0.30621161]
[1745624417462,1.26741298,600.56,598.94,0.30621161]
[1745624417659,1.26741298,600.56,598.95,0.30621161]
[1745624417960,1.26741298,600.56,598.96,0.30620171]
[1745624418160,0.29026366,600.55,598.97,0.30620171]
[1745624418361,0.29026366,600.55,598.98,0.30620171]
[1745624418561,0.29026366,600.55,598.99,0.30620171]
[1745624418762,0.29026366,600.55,598.87,0.29026366]
[1745624418763,1.26741298,600.36,599.0,0.30620171]
[1745624418962,1.26741298,600.36,599.01,0.30620171]
[1745624419161,1.26741298,600.36,599.02,0.30620171]
[1745624419361,1.26741298,600.36,599.03,0.30620171]
[1745624419562,1.26741298,600.36,599.04,0.30620171]
[1745624419762,1.26741298,600.36,599.05,0.30620171]
[1745624420163,1.26741298,600.36,599.06,0.30620171]
[1745624420362,1.26741298,600.36,599.07,0.30620171]
[1745624420663,1.26741298,600.36,599.08,0.30620171]
[1745624420864,1.26741298,600.36,598.88,0.30620171]
[1745624421064,1.26741298,600.35,599.09,0.813]
[1745624421262,1.26741298,600.35,599.1,0.30620171]
[1745624422565,1.26741298,600.35,599.11,0.30620811]
[1745624422765,1.26741298,600.35,599.1,0.30620811]
[1745624422965,1.26741298,600.35,599.11,0.30620811]
[1745624423166,1.26741298,600.35,599.1,0.30620811]
[1745624423367,1.26741298,600.35,599.11,0.30620811]
[1745624423564,1.26741298,600.35,599.1,0.30620811]
[1745624423763,1.26741298,600.35,599.11,0.30620811]
[1745624423962,1.26741298,600.35,599.1,0.30620811]
[1745624424665,1.26741298,600.35,599.09,0.813]
[1745624424867,1.26741298,600.35,599.1,0.30620763]
[1745624425563,0.29024066,600.38,599.1,0.30620763]
[1745624426061,1.26741298,600.45,599.1,0.30620763]
[1745624426266,0.29022855,600.38,599.1,0.30620763]
[1745624428864,1.26741298,600.93,599.11,0.30619849]
[1745624429063,1.26741298,600.93,599.1,0.30619849]
[1745624429265,0.29017048,600.38,599.11,0.30619849]
[1745624429460,1.26741298,600.93,599.1,0.30619849]
[1745624429764,1.26741298,600.93,599.11,0.30619849]
[1745624429967,1.26741298,600.93,599.1,0.30619849]
[1745624430261,0.29017048,600.92,599.11,0.30619849]
[1745624430468,0.29017048,600.92,599.12,0.30619928]